[Event "*** SCC Grand Prix: Titled Tuesday Blitz"]
[Site "Chess.com"]
[Date "2020.07.21"]
[Round "5"]
[White "RoelandPruijssers"]
[Black "Semen_Khanin"]
[Result "0-1"]
[WhiteElo "2572"]
[BlackElo "2735"]
[TimeControl "180+1"]
[EndTime "10:57:46 PDT"]
[Termination "Semen_Khanin won on time"]

1. e4 {[%clk 0:03:00.9]} 1... c5 {[%clk 0:02:58.2]} 2. Nf3 {[%clk 0:02:59.4]}
2... e6 {[%clk 0:02:58.2]} 3. d4 {[%clk 0:02:53.4]} 3... cxd4 {[%clk 0:02:58.5]}
4. Nxd4 {[%clk 0:02:54]} 4... Nc6 {[%clk 0:02:59.2]} 5. Nc3 {[%clk 0:02:53.3]}
5... Qc7 {[%clk 0:02:58.6]} 6. g3 {[%clk 0:02:53.3]} 6... d6 {[%clk 0:02:57]} 7.
Bg2 {[%clk 0:02:51.9]} 7... Bd7 {[%clk 0:02:56.7]} 8. O-O {[%clk 0:02:51.7]}
8... a6 {[%clk 0:02:57]} 9. Re1 {[%clk 0:02:51.8]} 9... Nf6 {[%clk 0:02:56.7]}
10. Nxc6 {[%clk 0:02:37.8]} 10... Bxc6 {[%clk 0:02:56.5]} 11. Nd5 {[%clk
0:02:32.1]} 11... Qd8 {[%clk 0:02:43.4]} 12. Bg5 {[%clk 0:02:07.8]} 12... Be7
{[%clk 0:02:35.8]} 13. Nxe7 {[%clk 0:01:53]} 13... Qxe7 {[%clk 0:02:36]} 14. Qd3
{[%clk 0:01:48.4]} 14... Rd8 {[%clk 0:02:30.2]} 15. Rad1 {[%clk 0:01:47.6]}
15... h6 {[%clk 0:02:28.6]} 16. Bd2 {[%clk 0:01:46.9]} 16... Nd7 {[%clk
0:02:15.9]} 17. Ba5 {[%clk 0:01:43.9]} 17... b6 {[%clk 0:02:10.4]} 18. Qxa6
{[%clk 0:01:20.2]} 18... Ra8 {[%clk 0:01:40.2]} 19. Qc4 {[%clk 0:01:19.5]} 19...
Ne5 {[%clk 0:01:40]} 20. Qc3 {[%clk 0:01:20]} 20... Rxa5 {[%clk 0:01:37.2]} 21.
f4 {[%clk 0:01:20.4]} 21... Rc5 {[%clk 0:01:37.1]} 22. Qd4 {[%clk 0:01:20.9]}
22... Nd7 {[%clk 0:01:30.1]} 23. Qxg7 {[%clk 0:01:18.7]} 23... Qf6 {[%clk
0:01:29.6]} 24. Qxf6 {[%clk 0:01:14.1]} 24... Nxf6 {[%clk 0:01:29.8]} 25. Rxd6
{[%clk 0:01:14.9]} 25... Ke7 {[%clk 0:01:28]} 26. Rd2 {[%clk 0:01:07.9]} 26...
e5 {[%clk 0:01:25]} 27. c3 {[%clk 0:00:39.6]} 27... h5 {[%clk 0:00:59.9]} 28. h3
{[%clk 0:00:39.2]} 28... h4 {[%clk 0:00:57.3]} 29. fxe5 {[%clk 0:00:39.2]} 29...
Nd7 {[%clk 0:00:52.9]} 30. g4 {[%clk 0:00:40.1]} 30... Nxe5 {[%clk 0:00:52.4]}
31. Rf1 {[%clk 0:00:31.9]} 31... Bd7 {[%clk 0:00:46.4]} 32. Rd4 {[%clk
0:00:28.8]} 32... Be6 {[%clk 0:00:44.9]} 33. a3 {[%clk 0:00:27.6]} 33... Nc4
{[%clk 0:00:29.7]} 34. Rf2 {[%clk 0:00:26.6]} 34... Rb5 {[%clk 0:00:26.8]} 35.
Bf1 {[%clk 0:00:23.9]} 35... Rc5 {[%clk 0:00:24.8]} 36. Bxc4 {[%clk 0:00:20.1]}
36... Bxc4 {[%clk 0:00:24.6]} 37. Rf5 {[%clk 0:00:20.1]} 37... Be6 {[%clk
0:00:21.2]} 38. Rf2 {[%clk 0:00:20.3]} 38... Rhc8 {[%clk 0:00:14.1]} 39. Rfd2
{[%clk 0:00:20.1]} 39... Re5 {[%clk 0:00:14.1]} 40. Kf2 {[%clk 0:00:20.4]} 40...
Kf6 {[%clk 0:00:12.6]} 41. Ke3 {[%clk 0:00:20.4]} 41... Kg5 {[%clk 0:00:12.7]}
42. Rf2 {[%clk 0:00:20.1]} 42... Re8 {[%clk 0:00:12.6]} 43. c4 {[%clk
0:00:17.6]} 43... Bc8 {[%clk 0:00:12.3]} 44. b3 {[%clk 0:00:17.1]} 44... f6
{[%clk 0:00:12.2]} 45. a4 {[%clk 0:00:16.4]} 45... Bb7 {[%clk 0:00:12]} 46. Rf4
{[%clk 0:00:16.4]} 46... R8e7 {[%clk 0:00:11]} 47. Kf3 {[%clk 0:00:15.6]} 47...
Bc6 {[%clk 0:00:08.7]} 48. Ke3 {[%clk 0:00:15.6]} 48... R5e6 {[%clk 0:00:08.7]}
49. Rf5+ {[%clk 0:00:15.6]} 49... Kg6 {[%clk 0:00:08.6]} 50. Rf4 {[%clk
0:00:16.5]} 50... Re5 {[%clk 0:00:08.6]} 51. Kf3 {[%clk 0:00:16.6]} 51... R5e6
{[%clk 0:00:08]} 52. Ke3 {[%clk 0:00:16.9]} 52... Rd7 {[%clk 0:00:08.1]} 53.
Rxd7 {[%clk 0:00:16.7]} 53... Bxd7 {[%clk 0:00:08.7]} 54. Rf5 {[%clk 0:00:16]}
54... Rd6 {[%clk 0:00:08.6]} 55. Rh5 {[%clk 0:00:15]} 55... Be6 {[%clk
0:00:07.9]} 56. Rxh4 {[%clk 0:00:15.3]} 56... Rd1 {[%clk 0:00:08]} 57. Rh8
{[%clk 0:00:15.4]} 57... Re1+ {[%clk 0:00:08.3]} 58. Kd4 {[%clk 0:00:15.5]}
58... Rb1 {[%clk 0:00:08.7]} 59. Kc3 {[%clk 0:00:15.7]} 59... Rc1+ {[%clk
0:00:07.7]} 60. Kb4 {[%clk 0:00:16.1]} 60... Re1 {[%clk 0:00:07.5]} 61. Rb8
{[%clk 0:00:14.4]} 61... Rxe4 {[%clk 0:00:07.4]} 62. Rxb6 {[%clk 0:00:15]} 62...
Kg5 {[%clk 0:00:06.4]} 63. a5 {[%clk 0:00:14.8]} 63... Bc8 {[%clk 0:00:05.7]}
64. Rc6 {[%clk 0:00:14.2]} 64... Bb7 {[%clk 0:00:05.5]} 65. Rc7 {[%clk
0:00:13.6]} 65... Ba8 {[%clk 0:00:04.2]} 66. a6 {[%clk 0:00:13.2]} 66... Re1
{[%clk 0:00:04.7]} 67. Rc8 {[%clk 0:00:13.5]} 67... Bg2 {[%clk 0:00:04.3]} 68.
Kc5 {[%clk 0:00:12.4]} 68... Ra1 {[%clk 0:00:04.1]} 69. Kb5 {[%clk 0:00:11.2]}
69... Bxh3 {[%clk 0:00:04.3]} 70. Rg8+ {[%clk 0:00:08.2]} 70... Kf4 {[%clk
0:00:04.2]} 71. Rf8 {[%clk 0:00:08.1]} 71... Ke5 {[%clk 0:00:04.4]} 72. Re8+
{[%clk 0:00:07.9]} 72... Kd6 {[%clk 0:00:04.3]} 73. Rf8 {[%clk 0:00:08]} 73...
Ke7 {[%clk 0:00:04.2]} 74. Rg8 {[%clk 0:00:07.5]} 74... Kf7 {[%clk 0:00:04.5]}
75. Rb8 {[%clk 0:00:05.1]} 75... Bxg4 {[%clk 0:00:04.8]} 76. a7 {[%clk
0:00:04.3]} 76... Bf3 {[%clk 0:00:04.7]} 77. Kb6 {[%clk 0:00:04]} 77... f5
{[%clk 0:00:05.2]} 78. c5 {[%clk 0:00:03.5]} 78... f4 {[%clk 0:00:05.3]} 79. c6
{[%clk 0:00:03.8]} 79... Bxc6 {[%clk 0:00:05.9]} 80. Kxc6 {[%clk 0:00:04.1]}
80... Rxa7 {[%clk 0:00:06.5]} 81. Rb4 {[%clk 0:00:03.8]} 81... Ke6 {[%clk
0:00:06]} 82. Rxf4 {[%clk 0:00:03.8]} 82... Ra6+ {[%clk 0:00:06]} 0-1

[Event "*** SCC Grand Prix: Titled Tuesday Blitz"]
[Site "Chess.com"]
[Date "2020.07.21"]
[Round "5"]
[White "Gulkov_Igor"]
[Black "Richarzard69"]
[Result "0-1"]
[WhiteElo "2371"]
[BlackElo "2219"]
[TimeControl "180+1"]
[EndTime "10:57:50 PDT"]
[Termination "Richarzard69 won on time"]

1. Nf3 {[%clk 0:03:00.9]} 1... Nf6 {[%clk 0:02:59.2]} 2. c4 {[%clk 0:02:59.7]}
2... c5 {[%clk 0:02:59.3]} 3. Nc3 {[%clk 0:02:59.1]} 3... Nc6 {[%clk 0:02:59.6]}
4. d4 {[%clk 0:02:58.6]} 4... cxd4 {[%clk 0:03:00.5]} 5. Nxd4 {[%clk 0:02:58]}
5... g6 {[%clk 0:03:00.6]} 6. e4 {[%clk 0:02:56.9]} 6... Bg7 {[%clk 0:03:00.6]}
7. Be3 {[%clk 0:02:55.9]} 7... O-O {[%clk 0:02:54.2]} 8. Be2 {[%clk 0:02:55.5]}
8... d6 {[%clk 0:02:52.7]} 9. O-O {[%clk 0:02:55]} 9... Nxd4 {[%clk 0:02:48.4]}
10. Bxd4 {[%clk 0:02:54.3]} 10... Bd7 {[%clk 0:02:48]} 11. Qd2 {[%clk
0:02:53.7]} 11... a6 {[%clk 0:02:46]} 12. f3 {[%clk 0:02:52.9]} 12... Rb8 {[%clk
0:02:43.2]} 13. Rfd1 {[%clk 0:02:43.7]} 13... b5 {[%clk 0:02:42.2]} 14. cxb5
{[%clk 0:02:10.9]} 14... axb5 {[%clk 0:02:43.1]} 15. Rac1 {[%clk 0:01:51.8]}
15... b4 {[%clk 0:02:37.2]} 16. Nd5 {[%clk 0:01:50.3]} 16... Nxd5 {[%clk
0:02:32.8]} 17. exd5 {[%clk 0:01:49.5]} 17... Bxd4+ {[%clk 0:02:20]} 18. Qxd4
{[%clk 0:01:48.6]} 18... Qa5 {[%clk 0:02:20.4]} 19. Bc4 {[%clk 0:01:46.8]} 19...
Bb5 {[%clk 0:02:02.9]} 20. Re1 {[%clk 0:01:36.8]} 20... Bxc4 {[%clk 0:01:43.5]}
21. Qxc4 {[%clk 0:01:36.1]} 21... Rfc8 {[%clk 0:01:39.5]} 22. Qxc8+ {[%clk
0:01:34.9]} 22... Rxc8 {[%clk 0:01:39.5]} 23. Rxc8+ {[%clk 0:01:34.1]} 23... Kg7
{[%clk 0:01:40.4]} 24. Rxe7 {[%clk 0:01:31.2]} 24... Qxa2 {[%clk 0:01:13.5]} 25.
Re2 {[%clk 0:01:23.9]} 25... Qxd5 {[%clk 0:01:09.4]} 26. Rcc2 {[%clk 0:01:22.6]}
26... b3 {[%clk 0:01:02.9]} 27. Rcd2 {[%clk 0:01:22.1]} 27... Qc5+ {[%clk
0:01:02.6]} 28. Kf1 {[%clk 0:01:21.7]} 28... h5 {[%clk 0:00:56.8]} 29. Rd3
{[%clk 0:01:14.6]} 29... Qc1+ {[%clk 0:00:50.1]} 30. Kf2 {[%clk 0:01:13.9]}
30... Qc5+ {[%clk 0:00:49.5]} 31. Kf1 {[%clk 0:01:10.7]} 31... Qc1+ {[%clk
0:00:42]} 32. Kf2 {[%clk 0:01:10.1]} 32... Qc4 {[%clk 0:00:40.7]} 33. Red2
{[%clk 0:00:57]} 33... h4 {[%clk 0:00:39.7]} 34. Rxd6 {[%clk 0:00:48.9]} 34...
Qc5+ {[%clk 0:00:39.7]} 35. R6d4 {[%clk 0:00:47.4]} 35... h3 {[%clk 0:00:37.8]}
36. gxh3 {[%clk 0:00:43.8]} 36... Qf5 {[%clk 0:00:36.2]} 37. R4d3 {[%clk
0:00:35.9]} 37... Qxh3 {[%clk 0:00:33.2]} 38. Ke3 {[%clk 0:00:35.7]} 38... Qe6+
{[%clk 0:00:31.7]} 39. Kd4 {[%clk 0:00:35.1]} 39... Qd6+ {[%clk 0:00:30]} 40.
Kc3 {[%clk 0:00:34.7]} 40... Qb6 {[%clk 0:00:25.7]} 41. Kc4 {[%clk 0:00:34.3]}
41... Qe6+ {[%clk 0:00:24.6]} 42. Kb4 {[%clk 0:00:33.8]} 42... Qb6+ {[%clk
0:00:24.3]} 43. Ka3 {[%clk 0:00:33.3]} 43... Qb5 {[%clk 0:00:20.5]} 44. Rc3
{[%clk 0:00:27]} 44... g5 {[%clk 0:00:16.9]} 45. Rd4 {[%clk 0:00:26.3]} 45...
Qe2 {[%clk 0:00:13.4]} 46. Kxb3 {[%clk 0:00:23.6]} 46... Qxh2 {[%clk 0:00:13.4]}
47. Rg4 {[%clk 0:00:23.2]} 47... Qb8+ {[%clk 0:00:12.9]} 48. Kc2 {[%clk
0:00:22]} 48... f6 {[%clk 0:00:13.2]} 49. Rgc4 {[%clk 0:00:21.1]} 49... Qe5
{[%clk 0:00:12.1]} 50. b4 {[%clk 0:00:20.3]} 50... Qe2+ {[%clk 0:00:11.5]} 51.
Kb3 {[%clk 0:00:19.9]} 51... Qe6 {[%clk 0:00:12.4]} 52. b5 {[%clk 0:00:19.3]}
52... Kg6 {[%clk 0:00:10.1]} 53. Kb4 {[%clk 0:00:18.9]} 53... Qd6+ {[%clk
0:00:10.3]} 54. Rc5 {[%clk 0:00:18.5]} 54... Kh5 {[%clk 0:00:08]} 55. Ka5 {[%clk
0:00:18.2]} 55... Qd8+ {[%clk 0:00:06.4]} 56. b6 {[%clk 0:00:17.8]} 56... Kh4
{[%clk 0:00:05.2]} 57. Ka6 {[%clk 0:00:17.1]} 57... Qa8+ {[%clk 0:00:04.6]} 58.
Kb5 {[%clk 0:00:15.9]} 58... Kg3 {[%clk 0:00:05.3]} 59. Rc6 {[%clk 0:00:14.6]}
59... f5 {[%clk 0:00:03.3]} 60. Rc7 {[%clk 0:00:13.7]} 60... Qd5+ {[%clk
0:00:02.4]} 61. R3c5 {[%clk 0:00:12.6]} 61... Qb3+ {[%clk 0:00:02.4]} 62. Kc6
{[%clk 0:00:12.3]} 62... Qa4+ {[%clk 0:00:02.6]} 63. Kd6 {[%clk 0:00:11.4]}
63... Qd4+ {[%clk 0:00:02.7]} 64. Ke6 {[%clk 0:00:10.9]} 64... f4 {[%clk
0:00:01.7]} 65. b7 {[%clk 0:00:10.2]} 65... Qe3+ {[%clk 0:00:01.1]} 66. Kf5
{[%clk 0:00:09.4]} 66... Qb3 {[%clk 0:00:02]} 67. Kxg5 {[%clk 0:00:07.2]} 67...
Qb6 {[%clk 0:00:02.1]} 68. Rc3 {[%clk 0:00:06]} 68... Qb5+ {[%clk 0:00:02.2]}
69. Kf6 {[%clk 0:00:05.6]} 69... Qb6+ {[%clk 0:00:02.6]} 70. Ke7 {[%clk
0:00:05.5]} 70... Qb5 {[%clk 0:00:02.1]} 71. Kd6 {[%clk 0:00:05.2]} 71... Qb4+
{[%clk 0:00:02.4]} 72. Kd7 {[%clk 0:00:04.7]} 72... Qb5+ {[%clk 0:00:02.8]} 73.
Kd8 {[%clk 0:00:04.3]} 73... Qd5+ {[%clk 0:00:02.5]} 74. Rd7 {[%clk 0:00:03.9]}
74... Qb5 {[%clk 0:00:02.3]} 75. Kc8 {[%clk 0:00:03]} 75... Qa6 {[%clk
0:00:01.3]} 76. Kc7 {[%clk 0:00:02.3]} 76... Qa5+ {[%clk 0:00:01.8]} 77. Kc8
{[%clk 0:00:01.7]} 77... Qa6 {[%clk 0:00:02.5]} 78. Rc6 {[%clk 0:00:01.5]} 78...
Qa5 {[%clk 0:00:02.7]} 79. Rdc7 {[%clk 0:00:01.1]} 79... Qd5 {[%clk 0:00:03.6]}
0-1

[Event "*** SCC Grand Prix: Titled Tuesday Blitz"]
[Site "Chess.com"]
[Date "2020.07.21"]
[Round "5"]
[White "Chesswizard_2007"]
[Black "Julianos82"]
[Result "1/2-1/2"]
[WhiteElo "2455"]
[BlackElo "2275"]
[TimeControl "180+1"]
[EndTime "10:58:16 PDT"]
[Termination "Game drawn by repetition"]

1. d4 {[%clk 0:03:00.9]} 1... d5 {[%clk 0:02:59.4]} 2. c4 {[%clk 0:02:55.8]}
2... dxc4 {[%clk 0:03:00.3]} 3. Nf3 {[%clk 0:02:54.7]} 3... c6 {[%clk
0:02:59.7]} 4. e3 {[%clk 0:02:55.6]} 4... Be6 {[%clk 0:02:58.7]} 5. a4 {[%clk
0:02:47.9]} 5... Nf6 {[%clk 0:02:57.9]} 6. Na3 {[%clk 0:02:46]} 6... c5 {[%clk
0:02:52.5]} 7. Bxc4 {[%clk 0:02:43.9]} 7... Bxc4 {[%clk 0:02:51.7]} 8. Nxc4
{[%clk 0:02:44.8]} 8... e6 {[%clk 0:02:50.7]} 9. O-O {[%clk 0:02:44.1]} 9... Nc6
{[%clk 0:02:48.2]} 10. Qe2 {[%clk 0:02:40.6]} 10... cxd4 {[%clk 0:02:40.2]} 11.
Rd1 {[%clk 0:02:39.7]} 11... Be7 {[%clk 0:02:34.2]} 12. Nxd4 {[%clk 0:02:33.4]}
12... Nxd4 {[%clk 0:02:12.8]} 13. Rxd4 {[%clk 0:02:34.3]} 13... Qc7 {[%clk
0:02:09.7]} 14. b3 {[%clk 0:02:31.8]} 14... O-O {[%clk 0:02:07.2]} 15. Bb2
{[%clk 0:02:30.1]} 15... Rfd8 {[%clk 0:02:05.7]} 16. Rad1 {[%clk 0:02:28.7]}
16... Rxd4 {[%clk 0:01:59.1]} 17. Bxd4 {[%clk 0:02:29.6]} 17... Rd8 {[%clk
0:01:45.2]} 18. Bxa7 {[%clk 0:02:15.8]} 18... Rxd1+ {[%clk 0:01:28.8]} 19. Qxd1
{[%clk 0:02:16.7]} 19... b5 {[%clk 0:01:27]} 20. Bb6 {[%clk 0:02:15.3]} 20...
Qc6 {[%clk 0:01:22.1]} 21. axb5 {[%clk 0:02:14.2]} 21... Qxb5 {[%clk 0:01:23]}
22. Bd8 {[%clk 0:02:11.1]} 22... Bf8 {[%clk 0:01:13.7]} 23. Bxf6 {[%clk
0:02:06.8]} 23... gxf6 {[%clk 0:01:14.6]} 24. g3 {[%clk 0:01:59.7]} 24... f5
{[%clk 0:01:14.3]} 25. Qd3 {[%clk 0:01:54.3]} 25... Be7 {[%clk 0:01:07.8]} 26.
Qc3 {[%clk 0:01:48.6]} 26... Bf8 {[%clk 0:01:02.9]} 27. Qd3 {[%clk 0:01:36.1]}
27... Be7 {[%clk 0:01:02.3]} 28. Kg2 {[%clk 0:01:34.4]} 28... Bf8 {[%clk
0:01:02.1]} 29. h4 {[%clk 0:01:33.2]} 29... Be7 {[%clk 0:00:54.6]} 30. Qc2
{[%clk 0:01:24.6]} 30... Bf8 {[%clk 0:00:51.5]} 31. Nd2 {[%clk 0:01:22.9]} 31...
Qd5+ {[%clk 0:00:31.5]} 32. Nf3 {[%clk 0:01:20.6]} 32... Be7 {[%clk 0:00:29.1]}
33. Qc4 {[%clk 0:01:19.7]} 33... Qb7 {[%clk 0:00:28.4]} 34. Qd3 {[%clk
0:01:13.5]} 34... Bf8 {[%clk 0:00:27.8]} 35. Qd1 {[%clk 0:01:12.9]} 35... Be7
{[%clk 0:00:26.2]} 36. Kg1 {[%clk 0:01:13.4]} 36... Bf6 {[%clk 0:00:25.8]} 37.
Ng5 {[%clk 0:01:07.5]} 37... h6 {[%clk 0:00:24.7]} 38. Nh3 {[%clk 0:01:05]}
38... Be5 {[%clk 0:00:23.4]} 39. Nf4 {[%clk 0:01:04]} 39... Bxf4 {[%clk
0:00:23.4]} 40. exf4 {[%clk 0:01:04.9]} 40... Qe4 {[%clk 0:00:22.4]} 41. Qc1
{[%clk 0:00:58.1]} 41... Qb4 {[%clk 0:00:20.4]} 42. Qc4 {[%clk 0:00:50.9]} 42...
Qe1+ {[%clk 0:00:18]} 43. Kg2 {[%clk 0:00:51.2]} 43... Kg7 {[%clk 0:00:16]} 44.
b4 {[%clk 0:00:50.3]} 44... h5 {[%clk 0:00:15.8]} 45. b5 {[%clk 0:00:49.5]}
45... Qb1 {[%clk 0:00:16.2]} 46. Qd4+ {[%clk 0:00:48.3]} 46... f6 {[%clk
0:00:15.9]} 47. b6 {[%clk 0:00:47.4]} 47... Kg6 {[%clk 0:00:15.9]} 48. Kh2
{[%clk 0:00:30.5]} 48... Qb5 {[%clk 0:00:15.7]} 49. Qe3 {[%clk 0:00:24.8]} 49...
Qb2 {[%clk 0:00:13.9]} 50. Kg1 {[%clk 0:00:20.1]} 50... Kf7 {[%clk 0:00:14.1]}
51. Kg2 {[%clk 0:00:18.8]} 51... Kg6 {[%clk 0:00:14.1]} 52. Qxe6 {[%clk
0:00:17.5]} 52... Qb5 {[%clk 0:00:11.4]} 53. Qg8+ {[%clk 0:00:16.6]} 53... Kh6
{[%clk 0:00:11.2]} 54. Qh8+ {[%clk 0:00:17.2]} 54... Kg6 {[%clk 0:00:11.6]} 55.
Qg8+ {[%clk 0:00:17.7]} 55... Kh6 {[%clk 0:00:12]} 56. Qd8 {[%clk 0:00:18.3]}
56... Kg6 {[%clk 0:00:11.6]} 57. Qd6 {[%clk 0:00:17]} 57... Kg7 {[%clk
0:00:09.1]} 58. Qc7+ {[%clk 0:00:15.7]} 58... Kg6 {[%clk 0:00:09.4]} 59. b7
{[%clk 0:00:14.2]} 59... Qd5+ {[%clk 0:00:09.8]} 60. Kg1 {[%clk 0:00:14.2]}
60... Qd1+ {[%clk 0:00:09.6]} 61. Kh2 {[%clk 0:00:13.9]} 61... Qd4 {[%clk
0:00:09.7]} 62. Qc2 {[%clk 0:00:11.1]} 62... Qb6 {[%clk 0:00:09.8]} 63. Qa2
{[%clk 0:00:06.2]} 63... Qxb7 {[%clk 0:00:08.5]} 64. Qg8+ {[%clk 0:00:06]} 64...
Kh6 {[%clk 0:00:08.9]} 65. Qh8+ {[%clk 0:00:06.5]} 65... Kg6 {[%clk 0:00:09.2]}
66. Qe8+ {[%clk 0:00:04.9]} 66... Kh6 {[%clk 0:00:08]} 67. Qe6 {[%clk
0:00:05.6]} 67... Kg6 {[%clk 0:00:07.8]} 68. Kg1 {[%clk 0:00:05.7]} 68... Qf3
{[%clk 0:00:07.7]} 69. Qg8+ {[%clk 0:00:04.4]} 69... Kh6 {[%clk 0:00:07.7]} 70.
Qh8+ {[%clk 0:00:05.3]} 70... Kg6 {[%clk 0:00:08.1]} 71. Qe8+ {[%clk 0:00:06.2]}
71... Kh6 {[%clk 0:00:07.9]} 72. Qf7 {[%clk 0:00:06.4]} 72... Qc3 {[%clk
0:00:07.2]} 73. Qf8+ {[%clk 0:00:05.8]} 73... Kg6 {[%clk 0:00:07]} 74. Qe8+
{[%clk 0:00:05.9]} 74... Kh6 {[%clk 0:00:07.1]} 75. Qe3 {[%clk 0:00:05.3]} 75...
Qc6 {[%clk 0:00:04.7]} 76. Qd2 {[%clk 0:00:03.5]} 76... Kg6 {[%clk 0:00:04.7]}
77. Qb2 {[%clk 0:00:03.4]} 77... Qf3 {[%clk 0:00:04.7]} 78. Qd2 {[%clk
0:00:03.9]} 78... Qc6 {[%clk 0:00:04.5]} 79. Qe3 {[%clk 0:00:04.8]} 79... Qd5
{[%clk 0:00:04.4]} 80. Qe8+ {[%clk 0:00:03.8]} 80... Kh6 {[%clk 0:00:03.5]} 81.
Qe3 {[%clk 0:00:03.4]} 81... Kg6 {[%clk 0:00:03.5]} 82. Kf1 {[%clk 0:00:03.9]}
82... Qc6 {[%clk 0:00:03.7]} 83. Ke2 {[%clk 0:00:03.9]} 83... Qb5+ {[%clk
0:00:04.1]} 84. Qd3 {[%clk 0:00:04.1]} 84... Qc6 {[%clk 0:00:04.7]} 85. Kd2
{[%clk 0:00:04.1]} 85... Qb6 {[%clk 0:00:05.1]} 86. Qe3 {[%clk 0:00:03.5]} 86...
Qb2+ {[%clk 0:00:05.3]} 87. Ke1 {[%clk 0:00:04]} 87... Qb1+ {[%clk 0:00:05.5]}
88. Ke2 {[%clk 0:00:04.9]} 88... Qb5+ {[%clk 0:00:05.9]} 89. Qd3 {[%clk
0:00:05.1]} 89... Qb6 {[%clk 0:00:06.4]} 90. Kf1 {[%clk 0:00:05.2]} 90... Qc6
{[%clk 0:00:06.8]} 91. Qe3 {[%clk 0:00:04.9]} 91... Qh1+ {[%clk 0:00:06.3]} 92.
Ke2 {[%clk 0:00:05.4]} 92... Qc6 {[%clk 0:00:07.2]} 93. Qd3 {[%clk 0:00:05.2]}
93... Qb6 {[%clk 0:00:06.6]} 94. Kf1 {[%clk 0:00:03.2]} 94... Qc6 {[%clk
0:00:06.9]} 95. Qe3 {[%clk 0:00:02.6]} 95... Qb5+ {[%clk 0:00:06.3]} 96. Kg1
{[%clk 0:00:03.5]} 96... Qc6 {[%clk 0:00:06.8]} 97. Qa3 {[%clk 0:00:02.3]} 97...
Qd5 {[%clk 0:00:05.5]} 98. Qe3 {[%clk 0:00:03.2]} 98... Qc6 {[%clk 0:00:05.1]}
99. Kf1 {[%clk 0:00:04.1]} 1/2-1/2